fUSD/lending_fUSD_20250904
["ID","MTS","AMOUNT","RATE_DAILY","PERIOD"]
[383527257,1756972250842,-400.0,0.00021917,2]
[383527258,1756972250850,-400.0,0.00021917,2]
[383527259,1756972250859,-278.85021313,0.00021917,2]
[383527260,1756972250868,-400.0,0.00021917,2]
[383527261,1756972250876,-400.0,0.00021917,2]
[383527262,1756972250886,-564.7,0.00021917,2]
[383527263,1756972250895,-400.0,0.00021917,2]
[383527264,1756972250904,-400.0,0.00021917,2]
[383527265,1756972250914,-403.78185408,0.00021917,2]
[383527266,1756972250923,-400.0,0.00021917,2]
[383527267,1756972250932,-400.0,0.00021917,2]
[383527268,1756972250942,-400.0,0.00021917,2]
[383527269,1756972250951,-400.0,0.00021917,2]
[383527270,1756972250960,-400.0,0.00021917,2]
[383527271,1756972250969,-400.0,0.00021917,2]
[383527272,1756972250978,-400.0,0.00021917,2]
[383527273,1756972250987,-400.0,0.00021917,2]
[383527274,1756972250996,-400.0,0.00021917,2]
[383527275,1756972251006,-211.5480526,0.00021917,2]
[383527276,1756972251015,-400.0,0.00021917,2]
[383527277,1756972251024,-150.09784891,0.00021917,2]
[383527278,1756972251033,-400.0,0.00021917,2]
[383527279,1756972251043,-400.0,0.00021917,2]
[383527280,1756972251052,-457.87,0.00021917,2]
[383527281,1756972251061,-400.0,0.00021917,2]
[383527282,1756972251071,-598.48,0.00021917,2]
[383527283,1756972251081,-400.0,0.00021917,2]
[383527284,1756972251090,-400.0,0.00021917,2]
[383527285,1756972251099,-400.0,0.00021917,2]
[383527286,1756972251108,-400.0,0.00021917,2]
[383527287,1756972251117,-400.0,0.00021917,2]
[383527288,1756972251129,-400.0,0.00021917,2]
[383527289,1756972251139,-595.25,0.00021917,2]
[383527290,1756972251147,-400.0,0.00021917,2]
[383527291,1756972251157,-498.49,0.00021917,2]
[383527292,1756972251166,-400.0,0.00021917,2]
[383527293,1756972251175,-400.0,0.00021917,2]
[383527294,1756972251184,-400.0,0.00021917,2]
[383527295,1756972251193,-151.0,0.00021917,2]
[383527296,1756972251203,-400.0,0.00021917,2]
[383527297,1756972251212,-400.0,0.00021917,2]
[383527298,1756972251222,-400.0,0.00021917,2]
[383527299,1756972251231,-401.93351461,0.00021917,2]
[383527300,1756972251241,-1479.41,0.00021917,2]
[383527301,1756972251250,-400.0,0.00021917,2]
[383527302,1756972251259,-837.18,0.00021917,2]
[383527303,1756972251268,-400.0,0.00021917,2]
[383527304,1756972251277,-400.0,0.00021917,2]
[383527305,1756972251286,-400.89350106,0.00021917,2]
[383527306,1756972251295,-405.51051511,0.00021917,2]
[383527307,1756972251304,-400.0,0.00021917,2]
[383527308,1756972251313,-400.0,0.00021917,2]
[383527309,1756972251322,-400.0,0.00021917,2]
[383527310,1756972251331,-400.0,0.00021917,2]
[383527311,1756972251340,-1080.78,0.00021917,2]
[383527312,1756972251349,-229.833439,0.00021917,2]
[383527313,1756972251358,-400.0,0.00021917,2]
[383527314,1756972251367,-400.0,0.00021917,2]
[383527315,1756972251376,-500.0,0.00021917,2]
[383527316,1756972251385,-500.0,0.00021917,2]
[383527317,1756972251394,-400.0,0.00021917,2]
[383527318,1756972251403,-400.0,0.00021917,2]
[383527319,1756972251412,-400.0,0.00021917,2]
[383527320,1756972251422,-400.0,0.00021917,2]
[383527321,1756972251432,-400.0,0.00021917,2]
[383527322,1756972251441,-400.0,0.00021917,2]
[383527323,1756972251451,-400.0,0.00021917,2]
[383527324,1756972251460,-400.0,0.00021917,2]
[383527325,1756972251469,-400.0,0.00021917,2]
[383527326,1756972251478,-401.75536945,0.00021917,2]
[383527327,1756972251487,-500.0,0.00021917,2]
[383527328,1756972251496,-400.0,0.00021917,2]
[383527329,1756972251506,-500.0,0.00021917,2]
[383527330,1756972251515,-500.0,0.00021917,2]
[383527331,1756972251524,-500.0,0.00021917,2]
[383527332,1756972251533,-400.0,0.00021917,2]
[383527333,1756972251542,-500.0,0.00021917,2]
[383527334,1756972251551,-400.0,0.00021917,2]
[383527335,1756972251560,-500.0,0.00021917,2]
[383527336,1756972251570,-400.0,0.00021917,2]
[383527337,1756972251579,-500.0,0.00021917,2]
[383527338,1756972251589,-500.0,0.00021917,2]
[383527339,1756972251598,-500.0,0.00021917,2]
[383527340,1756972251607,-400.0,0.00021917,2]
[383527341,1756972251616,-200.18864549,0.00021917,2]
[383527342,1756972251625,-1157.16,0.00021917,2]
[383527343,1756972251635,-402.34775627,0.00021917,2]
[383527344,1756972251644,-400.0,0.00021917,2]
[383527345,1756972251653,-400.0,0.00021917,2]
[383527346,1756972251662,-400.0,0.00021917,2]
[383527347,1756972251672,-400.0,0.00021917,2]
[383527348,1756972251681,-400.0,0.00021917,2]
[383527349,1756972251691,-400.0,0.00021917,2]
[383527350,1756972251702,-662.2,0.00021917,2]
[383527351,1756972251712,-400.0,0.00021917,2]
[383527352,1756972251722,-400.0,0.00021917,2]
[383527353,1756972251733,-400.0,0.00021917,2]
[383527354,1756972251744,-400.0,0.00021917,2]
[383527355,1756972251754,-935.6,0.00021917,2]
[383527356,1756972251763,-400.0,0.00021917,2]
[383527357,1756972251772,-408.61674753,0.00021917,2]
[383527358,1756972251782,-500.0,0.00021917,2]
[383527359,1756972251793,-500.0,0.00021917,2]
[383527360,1756972251802,-500.0,0.00021917,2]
[383527361,1756972251812,-500.0,0.00021917,2]
[383527362,1756972251822,-230.03954221,0.00021917,2]
[383527363,1756972252297,-200.42853914,0.000199,2]
[383527364,1756972252307,-822.63045779,0.00021917,2]
[383527365,1756972252316,-500.0,0.00021917,2]
[383527366,1756972252326,-400.0,0.00021917,2]
[383527367,1756972252335,-500.0,0.00021917,2]
[383527368,1756972252345,-1754.81,0.00021917,2]
[383527369,1756972252354,-500.0,0.00021917,2]
[383527370,1756972252364,-400.0,0.00021917,2]
[383527371,1756972252373,-500.0,0.00021917,2]
[383527372,1756972252383,-500.0,0.00021917,2]
[383527373,1756972252392,-500.0,0.00021917,2]
[383527374,1756972252402,-500.0,0.00021917,2]
[383527375,1756972252411,-500.0,0.00021917,2]
[383527376,1756972252421,-400.0,0.00021917,2]
[383527377,1756972252431,-400.0,0.00021917,2]
[383527378,1756972252440,-400.0,0.00021917,2]
[383527379,1756972252450,-2422.22,0.00021917,2]
[383527380,1756972252459,-400.0,0.00021917,2]
[383527381,1756972252469,-160.179626,0.00021918,2]
[383527382,1756972252478,-208.266388,0.00021918,2]
[383527383,1756972252488,-208.266388,0.00021918,2]
[383527384,1756972252497,-208.266388,0.00021918,2]
[383527385,1756972252507,-208.266388,0.00021918,2]
[383527386,1756972252517,-220.251368,0.00021918,2]
[383527387,1756972252527,-220.251368,0.00021918,2]
[383527388,1756972252537,-220.251368,0.00021918,2]
[383527389,1756972252546,-220.251368,0.00021918,2]
[383527390,1756972252556,-220.251368,0.00021918,2]
[383527391,1756972252566,-220.251368,0.00021918,2]
[383527392,1756972252575,-220.251368,0.00021918,2]
[383527393,1756972252584,-220.251368,0.00021918,2]
[383527394,1756972252592,-151.0,0.00021918,2]
[383527395,1756972252601,-151.0,0.00021918,2]
[383527396,1756972252611,-151.0,0.00021918,2]
[383527397,1756972252621,-151.0,0.00021918,2]
[383527398,1756972252631,-151.0,0.00021918,2]
[383527399,1756972252641,-151.0,0.00021918,2]
[383527400,1756972252650,-151.0,0.00021918,2]
[383527401,1756972252660,-151.0,0.00021918,2]
[383527402,1756972252670,-5000.0,0.00021918,2]
[383527403,1756972252679,-150.0,0.00021918,2]
[383527404,1756972252689,-325.70435747,0.00021938,2]
[383527405,1756972252699,-243.68065055,0.0002194,2]
[383527406,1756972252708,-15112.62032627,0.00021941,2]
[383527407,1756972252718,-838.72872596,0.00021943,2]
[383527408,1756972252727,-243.68065055,0.00021948,2]
[383527409,1756972252737,-838.72872596,0.0002195,2]
[383527410,1756972252746,-15112.62032627,0.00021954,2]
[383527411,1756972252756,-838.72872596,0.00021956,2]
[383527412,1756972252766,-838.72872596,0.00021957,2]
[383527413,1756972252776,-325.70435747,0.00021958,2]
[383527414,1756972252785,-15112.62032627,0.00021959,2]
[383527415,1756972252795,-243.68065055,0.00021961,2]
[383527416,1756972252805,-325.70435747,0.00021962,2]
[383527417,1756972252815,-325.70435747,0.00021964,2]
[383527418,1756972252824,-23.49640243,0.00021966,2]
[383527419,1756972252836,-220.18424812,0.00021966,2]
[383527420,1756972252846,-80.37343965,0.0002197,2]
[383527421,1756972252858,-758.35528631,0.0002197,2]
[383527422,1756972252867,-177.64471369,0.00021971,2]
[383527423,1756972252879,-148.05964378,0.00021971,2]
[383527424,1756972252889,-243.68065055,0.00021972,2]
[383527425,1756972252898,-278.60369724,0.00021973,2]
[383527426,1756972253178,400.0,0.00019001,2]
[383527427,1756972253414,-100.0,0.00019001,2]
[383527428,1756972253619,-593.47471657,0.00019001,2]
[383527429,1756972253628,-48.48261803,0.00021973,2]
[383527430,1756972253638,-500.0,0.00021973,2]
[383527431,1756972253647,-530.52688843,0.00021973,2]
[383527432,1756972253656,-165.39430916,0.00021973,2]
[383527433,1756972253665,-500.0,0.00021973,2]
[383527434,1756972253675,-500.0,0.00021973,2]
[383527435,1756972253684,-500.19251822,0.00021973,2]
[383527436,1756972253693,-500.0,0.00021973,2]
[383527437,1756972253702,-500.0,0.00021973,2]
[383527438,1756972253711,-500.0,0.00021973,2]
[383527439,1756972253722,-500.0,0.00021973,2]
[383527440,1756972253732,-512.70989674,0.00021973,2]
[383527441,1756972253742,-500.0,0.00021973,2]
[383527442,1756972253752,-500.0,0.00021973,2]
[383527443,1756972253761,-500.0,0.00021973,2]
[383527444,1756972253772,-500.0,0.00021973,2]
[383527445,1756972253783,-500.0,0.00021973,2]
[383527446,1756972253792,-500.0,0.00021973,2]
[383527447,1756972253803,-10021.62227409,0.00021974,2]
[383527448,1756972253819,-5090.99805218,0.00021974,2]
[383527449,1756972253828,-8688.34073581,0.00021998,2]
[383527450,1756972254385,-125.37444547,0.00021998,2]
[383527451,1756972254866,-400.0,0.00021917,2]
[383527452,1756972254875,-210.82,0.00021998,2]
[383527453,1756972254897,-3761.6159066,0.00021998,2]
[383527454,1756972254974,-2326.46923839,0.00021998,2]
[383527455,1756972254983,-500.0,0.00021999,2]
[383527456,1756972254992,-500.0,0.00021999,2]
[383527457,1756972255001,-51821.40129929,0.00022,4]
[383527458,1756972256105,175.3,0.00021221,120]
[383527459,1756972256417,158.33168876,0.00018716,2]
[383527460,1756972256496,-91.66831124,0.00018716,2]
[383527461,1756972261669,-7.0626204,0.00019001,2]
[383527462,1756972268700,-181.3898934,0.00019001,2]
[383527463,1756972275767,-240.97,0.00018904,2]
[383527464,1756972275813,-18.06,0.00019001,2]
[383527465,1756972283634,-237.03940223,0.00019001,2]
[383527466,1756972283692,-56.44808397,0.00019001,2]
[383527467,1756972290641,-0.19251822,0.00019001,2]
[383527468,1756972290670,-499.80748178,0.00019001,2]
[383527469,1756972297705,-500.0,0.000197,2]
[383527470,1756972304636,-12.70989674,0.00019001,2]
[383527471,1756972304660,-487.29010326,0.00019001,2]
[383527472,1756972312597,-500.0,0.000197,2]
[383527474,1756972319732,-500.0,0.000197,2]
[383527475,1756972327702,-170.55,0.00019001,2]
[383527476,1756972330823,500.0,0.00019351,3]
[383527477,1756972340657,156.09,0.00016712,2]
[383527478,1756972341575,-152.19,0.00019001,2]
[383527479,1756972348643,-177.26,0.00019001,2]
[383527480,1756972348707,-145.48,0.00019001,2]
[383527481,1756972355713,-183.7969754,0.00019,2]
[383527482,1756972362803,-0.35251768,0.00019,2]
[383527483,1756972362834,-170.56888024,0.00019,2]
[383527484,1756972362879,-158.15720416,0.00019,2]
[383527485,1756972370950,-169.50331323,0.00019,2]
[383527486,1756972370991,-160.99337354,0.00019,2]
[383527487,1756972378665,-193.52662646,0.00019,2]
[383527488,1756972378871,-112.94674708,0.00019,2]
[383527489,1756972392521,-112.94674708,0.00019,2]
[383527490,1756972392545,-274.10650584,0.00019,2]
[383527492,1756972399597,-400.0,0.00019,2]
[383527493,1756972406536,-100.0,0.00019,2]
[383527494,1756972406567,-183.7969754,0.0001925,2]
[383527495,1756972406600,-195.0,0.00019351,2]
[383527496,1756972406634,-250.0,0.00019351,2]
[383527497,1756972406663,-160.26200932,0.00019683,2]
[383527498,1756972406692,-500.0,0.000197,2]
[383527499,1756972406722,-2500.0,0.00019783,2]
[383527500,1756972406750,-500.0,0.00019783,2]
[383527501,1756972407014,-1243.50430465,0.00020329,2]
[383527502,1756972418626,-400.0,0.00019,2]
[383527503,1756972426169,-100.0,0.00019,2]
[383527504,1756972426210,-300.0,0.00020329,2]
[383527505,1756972433215,-500.0,0.00020329,2]
[383527508,1756972440955,-300.0,0.00019,2]
[383527509,1756972448034,-200.0,0.00019,2]
[383527510,1756972448082,-100.0,0.00019665,2]
[383527512,1756972455089,-500.0,0.00019332,2]
[383527513,1756972462538,-500.0,0.00019,2]
[383527514,1756972462587,-243.50430465,0.00019332,2]
[383527515,1756972469612,-500.0,0.00019332,2]
[383527516,1756972504480,175.0,0.00022395,120]
[383527517,1756972505766,175.0,0.00023515,120]
[383527518,1756972507007,175.0,0.0002469,120]
[383527519,1756972508263,175.0,0.00025925,120]
[383527520,1756972532939,-444.35208135,0.00019231,2]
[383527521,1756972540018,-500.0,0.00019231,2]
[383527522,1756972555775,-203.51532858,0.00019231,2]
[383527523,1756972563815,-2500.0,0.00019135,2]
[383527524,1756972571282,-209.8286776,0.00019135,2]
[383527525,1756972604593,-160.340668,0.00019134,2]
[383527526,1756972611907,-206.51670926,0.00019033,2]
[383527527,1756972619398,-480.5,0.00019033,2]
[383527528,1756972627618,-21.69258242,0.00019033,2]
[383527529,1756972627661,-156.61483516,0.00019133,2]
[383527530,1756972651882,-185.5,0.00019037,2]
[383527531,1756972659985,-200.0,0.00018983,2]
[383527532,1756972660024,-42.83,0.00019037,2]
[383527533,1756972667561,-400.0,0.00019037,2]
[383527534,1756972667975,1472.0,0.00024682,120]
[383527535,1756972668169,1472.0,0.0002715,120]
[383527536,1756972668371,1472.0,0.00029618,120]
[383527538,1756972675768,-411.27,0.00019037,2]
[383527539,1756972677787,511.21,9.776e-05,2]
[383527540,1756972678011,511.21,0.00010291,2]
[383527541,1756972678233,469.79,0.00010806,2]
[383527542,1756972678263,41.42,0.00010806,2]
[383527543,1756972678438,511.21,0.0001132,2]
[383527544,1756972678659,434.48383947,0.00011835,2]
[383527545,1756972678686,76.72616053,0.00011835,2]
[383527546,1756972678956,511.21,0.00012349,2]
[383527547,1756972679152,511.21,0.00012864,2]
[383527548,1756972679358,511.21,0.00013378,2]
[383527549,1756972679574,511.21,0.00013893,2]
[383527550,1756972679794,511.21,0.00014407,2]
[383527551,1756972680010,511.21,0.00014922,2]
[383527552,1756972680229,511.21,0.00015436,2]
[383527553,1756972680433,511.21,0.00015951,2]
[383527554,1756972680631,511.21,0.00016466,2]
[383527555,1756972680822,511.21,0.0001698,2]
[383527556,1756972681072,511.21,0.00017495,2]
[383527557,1756972681265,511.21,0.00018009,2]
[383527558,1756972681744,-238.82053117,0.00018524,2]
[383527559,1756972683806,-127.61053117,0.00018524,2]
[383527560,1756972683834,-144.77893766,0.00018524,2]
[383527561,1756972692558,-279.34922644,0.00018983,2]
[383527562,1756972695360,500.0,0.00018996,3]
[383527563,1756972707639,-200.0,0.00018983,2]
[383527564,1756972715729,-182.00605868,0.00018982,2]
[383527565,1756972716050,-35.98788264,0.00018982,2]
[383527566,1756972722725,-250.0,0.00018886,2]
[383527567,1756972724091,-598.92,0.00018886,2]
[383527568,1756972726905,-418.2672,0.00018886,2]
[383527569,1756972730389,-390.18185178,0.00018886,2]
[383527570,1756972731820,-400.0,0.00018886,2]
[383527571,1756972734591,-154.62,0.00018886,2]
[383527572,1756972736858,-275.10941311,0.00018886,2]
[383527573,1756972740155,-167.12611263,0.00018886,2]
[383527574,1756972740244,-400.0,0.00018886,2]
[383527575,1756972743671,-163.55,0.00018886,2]
[383527576,1756972748228,-150.0,0.00018886,2]
[383527577,1756972749707,-181.33537773,0.00018886,2]
[383527578,1756972751451,-576.58457911,0.00018886,2]
[383527579,1756972756086,-400.0,0.00018886,2]
[383527580,1756972757567,-274.51199457,0.00018886,2]
[383527581,1756972759190,-862.02792937,0.00018886,2]
[383527582,1756972760970,-200.0,0.00018886,2]
[383527583,1756972765498,-152.178,0.00018886,2]
[383527584,1756972768282,-152.17721118,0.00018886,2]
[383527585,1756972772324,-216.52421222,0.00018886,2]
[383527586,1756972773358,-248.186,0.00018886,2]
[383527587,1756972775891,-274.48175308,0.00018886,2]
[383527588,1756972777933,-299.14207063,0.00018886,2]
[383527589,1756972779493,-400.0,0.00018886,2]
[383527590,1756972783802,-418.11758425,0.00018886,2]
[383527591,1756972787358,-232.91091833,0.00018886,2]
[383527592,1756972803684,-500.0,0.00018886,2]
[383527593,1756972810688,-500.0,0.00018886,2]
[383527594,1756972811538,-545.879688,0.00018886,2]
[383527595,1756972818278,-500.0,0.00018886,2]
[383527596,1756972818606,500.0,0.00018898,3]
[383527597,1756972818752,500.0,0.00018933,3]
[383527598,1756972825285,-500.0,0.00018886,2]
[383527599,1756972832325,-151.29537191,0.00018886,2]
[383527600,1756972839445,-260.19220602,0.00018886,2]
[383527601,1756972846871,-160.26200932,0.00018885,2]
[383527603,1756972884877,-100.0,0.00018884,2]
[383527604,1756972884905,-200.0,0.00018884,2]
[383527605,1756972887997,-330.85,0.00018789,2]
[383527606,1756972890535,-1200.900643,0.00018789,2]
[383527607,1756972893070,-60.26200932,0.00018885,2]
[383527608,1756972893095,-279.47598136,0.00018885,2]
[383527609,1756972908065,-266.27,0.00018885,2]
[383527611,1756972916439,-70.75493836,0.00018885,2]
[383527612,1756972916495,-213.22139914,0.00018885,2]
[383527613,1756972921615,500.0,0.00018885,3]
[383527614,1756972921681,500.0,0.00018909,3]
[383527615,1756972925611,-165.73676825,0.00018884,2]
[383527616,1756972934397,290.25,0.00013699,2]
[383527617,1756972937651,-38.98521901,0.00018884,2]
[383527618,1756972937684,-95.27801274,0.00018884,2]
[383527619,1756972940273,160.0,0.00018795,7]
[383527620,1756972948082,-210.84775334,0.00018884,2]
[383527621,1756972964604,-159.80878926,0.00018883,2]
[383527622,1756972971669,-196.0570272,0.00018883,2]
[383527623,1756972979129,-123.59994878,0.00018883,2]
[383527624,1756972979207,-24.87712964,0.00018883,2]
[383527625,1756972986191,-1.53814106,0.00018882,2]
[383527626,1756972986214,-298.46185894,0.00018882,2]
[383527627,1756972998278,-150.0,0.00018882,2]
[383527628,1756973005572,-150.0,0.00018882,2]
[383527629,1756973005649,-100.0,0.00018883,2]
[383527630,1756973009661,-191.20200518,0.00018783,2]
[383527631,1756973019921,-200.0,0.00018883,2]
[383527632,1756973039307,-29.04,0.00018782,2]
[383527633,1756973039335,-141.92,0.00018782,2]
[383527634,1756973048156,500.0,0.00018883,3]
[383527635,1756973063666,-150.0,0.00018779,2]
[383527636,1756973063701,-100.0,0.00018883,2]
[383527637,1756973069696,250.0,0.00015,2]
[383527638,1756973069970,-285.47862768,0.00018762,2]
[383527639,1756973070810,300.0,0.00017,2]
[383527640,1756973072367,-260.19430923,0.00018762,2]
[383527641,1756973074491,-105.35706309,0.00018762,2]
[383527642,1756973084313,666.0,0.00018762,3]
[383527643,1756973088040,-32.318326,0.00018753,2]
[383527644,1756973088065,-167.681674,0.00018753,2]
[383527645,1756973100339,-86.53013164,0.00018882,2]
[383527646,1756973100363,-118.93177124,0.00018882,2]
[383527647,1756973104234,5786.37,0.00030137,120]
[383527648,1756973119686,261.78971047,0.0003013,120]
[383527649,1756973124216,-157.68,0.00018881,2]
[383527650,1756973136247,-416.68,0.00018881,2]
[383527651,1756973148389,-400.0,0.00018881,2]
[383527652,1756973157234,-287.33723621,0.00018786,2]
[383527653,1756973160082,-196.92509213,0.00018786,2]
[383527654,1756973160548,-400.0,0.00018786,2]
[383527655,1756973161796,-90.09767166,0.00018786,2]
[383527656,1756973161918,90.52464494,0.00018783,2]
[383527657,1756973162381,500.0,0.00018834,3]
[383527658,1756973162924,500.0,0.00018863,3]
[383527659,1756973165296,-268.48805506,0.00018783,2]
[383527660,1756973165319,-37.45566588,0.00018824,2]
[383527661,1756973168222,-240.59300662,0.00018824,2]
[383527662,1756973172666,-197.21212982,0.00018824,2]
[383527663,1756973173302,-203.34909702,0.00018824,2]
[383527664,1756973177956,-1000.0,0.00018824,2]
[383527665,1756973182518,-495.622,0.00018824,2]
[383527666,1756973184260,-374.09810066,0.00018824,2]
[383527667,1756973184283,-34.01189934,0.00018831,2]
[383527668,1756973186632,-160.98810066,0.00018831,2]
[383527669,1756973186656,-286.0,0.00018838,2]
[383527670,1756973233457,-300.0,0.00018852,2]
[383527671,1756973233488,-195.0,0.00018855,2]
[383527672,1756973233518,-200.0,0.00018873,2]
[383527673,1756973233548,-500.0,0.00018873,2]
[383527674,1756973233576,-200.0,0.00018873,2]
[383527675,1756973233608,-151.0,0.00018873,2]
[383527676,1756973233639,-500.0,0.00018873,2]
[383527677,1756973233904,-151.0,0.00018873,2]
[383527678,1756973233925,-300.0,0.00018875,2]
[383527679,1756973233947,-195.0,0.00018875,2]
[383527680,1756973233966,-200.0,0.00018875,2]
[383527681,1756973233977,-157.0,0.00018875,2]
[383527682,1756973233987,-343.0,0.00018876,2]
[383527683,1756973234009,-157.0,0.00018876,2]
[383527684,1756973234019,-43.0,0.00018876,2]
[383527685,1756973234038,-151.0,0.00018876,2]
[383527686,1756973234050,-306.0,0.00018876,2]
[383527687,1756973234059,-194.0,0.00018876,2]
[383527688,1756973234075,-151.0,0.00018876,2]
[383527689,1756973234141,-151.0,0.00018873,2]
[383527690,1756973234150,-131.90118568,0.00018876,2]
[383527691,1756973237035,-270.91167764,0.00018758,2]
[383527692,1756973238856,-129.08832236,0.00018758,2]
[383527695,1756973284363,-162.58934526,0.00018861,2]
[383527696,1756973287780,500.0,0.00018867,3]
[383527697,1756973287920,500.0,0.00018875,3]
[383527699,1756973301449,-250.0,0.00018861,2]
[383527700,1756973318485,-175.71847912,0.0001886,2]
[383527702,1756973337649,-191.20200516,0.0001876,2]
[383527703,1756973344779,1002.54191626,0.00030136,120]
[383527704,1756973370807,596.85,0.00018534,2]
[383527705,1756973377956,250.0,0.00018554,2]
[383527706,1756973413673,500.0,0.00018859,3]
[383527707,1756973413881,500.0,0.00018863,3]
[383527708,1756973422895,1550.46,0.00018613,2]
[383527728,1756973432172,-200.0,0.00018671,2]
[383527729,1756973432182,-300.0,0.00018859,2]
[383527730,1756973432191,-1200.0,0.00018859,2]
[383527731,1756973432201,-300.0,0.00018859,2]
[383527732,1756973432211,-195.0,0.00018859,2]
[383527733,1756973432221,-300.0,0.0001886,2]
[383527734,1756973432231,-286.0,0.0001886,2]
[383527735,1756973432240,-324.28152088,0.0001886,2]
[383527736,1756973432250,-500.0,0.0001886,2]
[383527737,1756973432259,-500.0,0.0001886,2]
[383527738,1756973432268,-500.0,0.0001886,2]
[383527739,1756973432278,-359.77507742,0.0001886,2]
[383527740,1756973432289,-500.0,0.0001886,2]
[383527741,1756973432301,-500.0,0.0001886,2]
[383527742,1756973432312,-500.0,0.0001886,2]
[383527743,1756973432322,-500.0,0.0001886,2]
[383527744,1756973432332,-500.0,0.0001886,2]
[383527745,1756973432341,-225.81052996,0.0001886,2]
[383527746,1756973432351,-624.52626774,0.0001886,2]
[383527747,1756973432361,-195.0,0.00018867,2]
[383527748,1756973432371,-300.0,0.00018869,2]
[383527749,1756973432382,-286.0,0.00018869,2]
[383527750,1756973432391,-500.0,0.00018873,2]
[383527751,1756973432402,-151.0,0.00018873,2]
[383527752,1756973432411,-500.0,0.00018873,2]
[383527753,1756973432421,-151.0,0.00018873,2]
[383527754,1756973432431,-500.0,0.00018873,2]
[383527755,1756973432440,-151.0,0.00018873,2]
[383527757,1756973432449,-500.0,0.00018873,2]
[383527758,1756973432458,-151.0,0.00018873,2]
[383527760,1756973432468,-500.0,0.00018873,2]
[383527762,1756973432477,-151.0,0.00018873,2]
[383527763,1756973432487,-500.0,0.00018873,2]
[383527764,1756973432497,-151.0,0.00018873,2]
[383527765,1756973432506,-500.0,0.00018873,2]
[383527766,1756973432516,-151.0,0.00018873,2]
[383527767,1756973432526,-151.0,0.00018873,2]
[383527768,1756973432536,-500.0,0.00018873,2]
[383527769,1756973432547,-500.0,0.00018873,2]
[383527770,1756973432557,-600.0,0.00018873,2]
[383527771,1756973432567,-600.0,0.00018873,2]
[383527772,1756973432578,-600.0,0.00018873,2]
[383527773,1756973432589,-600.0,0.00018873,2]
[383527774,1756973432599,-600.0,0.00018873,2]
[383527775,1756973432610,-600.0,0.00018873,2]
[383527776,1756973432620,-600.0,0.00018873,2]
[383527777,1756973432630,-600.0,0.00018873,2]
[383527778,1756973432639,-600.0,0.00018873,2]
[383527779,1756973432648,-600.0,0.00018873,2]
[383527780,1756973432658,-500.0,0.00018873,2]
[383527781,1756973432668,-600.0,0.00018873,2]
[383527782,1756973432678,-200.0,0.00018873,2]
[383527783,1756973432688,-197.87762863,0.00018873,2]
[383527784,1756973432700,-151.0,0.00018886,2]
[383527785,1756973432710,-151.0,0.00018886,2]
[383527786,1756973432720,-192.93,0.00018892,2]
[383527787,1756973432730,-500.0,0.00018928,2]
[383527788,1756973432740,-820.69077356,0.00018983,2]
[383527789,1756973432750,-500.0,0.00018983,2]
[383527790,1756973432759,-511.21,0.00019038,2]